[Event "*** SCC Grand Prix: Titled Tuesday Blitz"]
[Site "Chess.com"]
[Date "2020.06.09"]
[Round "3"]
[White "NewBornNow"]
[Black "Bigfish1995"]
[Result "0-1"]
[WhiteElo "2704"]
[BlackElo "2985"]
[TimeControl "180+1"]
[EndTime "9:30:54 PDT"]
[Termination "Bigfish1995 won by resignation"]

1. e4 {[%clk 0:03:00.9]} 1... c6 {[%clk 0:02:55.7]} 2. d4 {[%clk 0:02:59.8]}
2... d5 {[%clk 0:02:56]} 3. Nc3 {[%clk 0:02:59.3]} 3... dxe4 {[%clk 0:02:52.3]}
4. Nxe4 {[%clk 0:02:59.1]} 4... Nd7 {[%clk 0:02:52.4]} 5. Bd3 {[%clk 0:02:55.9]}
5... Ngf6 {[%clk 0:02:50.3]} 6. Ng5 {[%clk 0:02:52.6]} 6... g6 {[%clk
0:02:50.2]} 7. N1f3 {[%clk 0:02:52]} 7... Bg7 {[%clk 0:02:48.2]} 8. O-O {[%clk
0:02:49.6]} 8... O-O {[%clk 0:02:43.5]} 9. c3 {[%clk 0:02:43.5]} 9... c5 {[%clk
0:02:36]} 10. Re1 {[%clk 0:02:39.8]} 10... cxd4 {[%clk 0:02:36.3]} 11. Nxd4
{[%clk 0:02:39.2]} 11... Nc5 {[%clk 0:02:35.3]} 12. Bc4 {[%clk 0:02:32.5]} 12...
Ne8 {[%clk 0:02:21.2]} 13. Nc6 {[%clk 0:02:22]} 13... Qxd1 {[%clk 0:02:05.2]}
14. Nxe7+ {[%clk 0:02:21.7]} 14... Kh8 {[%clk 0:02:05.7]} 15. Rxd1 {[%clk
0:02:22.1]} 15... Be6 {[%clk 0:01:51.8]} 16. Nd5 {[%clk 0:02:19.1]} 16... Nd6
{[%clk 0:01:48.9]} 17. Nxe6 {[%clk 0:02:13.8]} 17... fxe6 {[%clk 0:01:45.1]} 18.
Ne3 {[%clk 0:02:13.2]} 18... Rad8 {[%clk 0:01:45.1]} 19. Bf1 {[%clk 0:02:03.5]}
19... Nde4 {[%clk 0:01:37.3]} 20. f3 {[%clk 0:02:02]} 20... Nf6 {[%clk
0:01:25.8]} 21. Bd2 {[%clk 0:01:54]} 21... Na4 {[%clk 0:01:24.5]} 22. Rab1
{[%clk 0:01:52.1]} 22... a6 {[%clk 0:01:19.8]} 23. Be1 {[%clk 0:01:48.5]} 23...
Bh6 {[%clk 0:01:15.7]} 24. Bf2 {[%clk 0:01:44.4]} 24... Rxd1 {[%clk 0:01:06.2]}
25. Nxd1 {[%clk 0:01:37.8]} 25... Rc8 {[%clk 0:00:34.3]} 26. Bd4 {[%clk
0:01:18]} 26... Bg7 {[%clk 0:00:34.1]} 27. b3 {[%clk 0:01:06.4]} 27... Nc5
{[%clk 0:00:33]} 28. c4 {[%clk 0:01:05.5]} 28... Nfd7 {[%clk 0:00:28.3]} 29. Be3
{[%clk 0:01:04.6]} 29... e5 {[%clk 0:00:20.4]} 30. Nf2 {[%clk 0:01:03.4]} 30...
Ne6 {[%clk 0:00:20.4]} 31. Rd1 {[%clk 0:01:00.6]} 31... Nd4 {[%clk 0:00:20.5]}
32. f4 {[%clk 0:00:58.1]} 32... Nf8 {[%clk 0:00:20.7]} 33. fxe5 {[%clk
0:00:55.4]} 33... Nc2 {[%clk 0:00:20.7]} 34. Bf4 {[%clk 0:00:53.8]} 34... Ne6
{[%clk 0:00:21.1]} 35. Bg3 {[%clk 0:00:51.7]} 35... Ne3 {[%clk 0:00:21.1]} 36.
Rd6 {[%clk 0:00:49.1]} 36... Re8 {[%clk 0:00:16.1]} 37. Ne4 {[%clk 0:00:45.4]}
37... Nf5 {[%clk 0:00:16]} 38. Rd7 {[%clk 0:00:42.2]} 38... Nxg3 {[%clk
0:00:16.5]} 39. hxg3 {[%clk 0:00:31.9]} 39... Bxe5 {[%clk 0:00:16.6]} 40. Rxb7
{[%clk 0:00:31.5]} 40... Nd4 {[%clk 0:00:17]} 41. Bd3 {[%clk 0:00:29.1]} 41...
Nf5 {[%clk 0:00:16.8]} 42. g4 {[%clk 0:00:26.8]} 42... Bd4+ {[%clk 0:00:16]} 43.
Kh2 {[%clk 0:00:26.6]} 43... Ne3 {[%clk 0:00:16.4]} 44. Kg3 {[%clk 0:00:24.7]}
44... Rf8 {[%clk 0:00:16.4]} 45. Re7 {[%clk 0:00:21.6]} 45... h5 {[%clk
0:00:14.6]} 46. Ng5 {[%clk 0:00:19.5]} 46... Bf6 {[%clk 0:00:14.7]} 47. Rh7+
{[%clk 0:00:17.2]} 47... Kg8 {[%clk 0:00:14.8]} 48. Bxg6 {[%clk 0:00:17.1]}
48... Bxg5 {[%clk 0:00:14.9]} 49. Rxh5 {[%clk 0:00:17.3]} 49... Bf4+ {[%clk
0:00:14.8]} 50. Kf3 {[%clk 0:00:17.4]} 50... Nd1 {[%clk 0:00:09.8]} 51. Rf5
{[%clk 0:00:15.5]} 51... Bc1 {[%clk 0:00:09.2]} 52. Rxf8+ {[%clk 0:00:14.9]}
52... Kxf8 {[%clk 0:00:10.1]} 53. Ke2 {[%clk 0:00:13.8]} 53... Nc3+ {[%clk
0:00:10.2]} 54. Kd3 {[%clk 0:00:13.9]} 54... Nxa2 {[%clk 0:00:10.8]} 55. c5
{[%clk 0:00:13.9]} 55... Ke7 {[%clk 0:00:10.7]} 56. Kc4 {[%clk 0:00:14.8]} 56...
Ba3 {[%clk 0:00:08.5]} 57. Be4 {[%clk 0:00:13.3]} 57... Nb4 {[%clk 0:00:05.1]}
58. g5 {[%clk 0:00:13.3]} 58... a5 {[%clk 0:00:05]} 59. g6 {[%clk 0:00:12.8]}
59... Kf6 {[%clk 0:00:05]} 60. g4 {[%clk 0:00:12]} 60... Na2 {[%clk 0:00:04.2]}
61. c6 {[%clk 0:00:11.9]} 61... Bd6 {[%clk 0:00:03]} 62. Bf5 {[%clk 0:00:11.6]}
62... Bc7 {[%clk 0:00:03.1]} 63. Kb5 {[%clk 0:00:11.2]} 63... Nb4 {[%clk
0:00:04]} 64. Kc5 {[%clk 0:00:11.1]} 64... Kg7 {[%clk 0:00:04.5]} 65. Kc4 {[%clk
0:00:11]} 65... Kf6 {[%clk 0:00:05]} 66. Kc5 {[%clk 0:00:10.7]} 66... Kg7 {[%clk
0:00:05.4]} 67. Kb5 {[%clk 0:00:10]} 67... Kf8 {[%clk 0:00:05.5]} 68. Kc4 {[%clk
0:00:08.5]} 68... Nxc6 {[%clk 0:00:05.3]} 69. Kc5 {[%clk 0:00:08.3]} 69... Nb4
{[%clk 0:00:05.8]} 70. Kb5 {[%clk 0:00:08.4]} 70... Kg7 {[%clk 0:00:06.4]} 71.
Be4 {[%clk 0:00:08.7]} 71... Bd8 {[%clk 0:00:07]} 72. Bf5 {[%clk 0:00:08.6]}
72... Na2 {[%clk 0:00:06.7]} 73. Bd3 {[%clk 0:00:08]} 73... Nc3+ {[%clk
0:00:06.7]} 74. Kc4 {[%clk 0:00:07.2]} 74... Nd1 {[%clk 0:00:07.2]} 75. b4
{[%clk 0:00:06.5]} 75... Nb2+ {[%clk 0:00:06.9]} 76. Kc3 {[%clk 0:00:05.9]}
76... Nxd3 {[%clk 0:00:07.3]} 77. bxa5 {[%clk 0:00:05.8]} 77... Ne5 {[%clk
0:00:06.3]} 78. a6 {[%clk 0:00:05.8]} 78... Nc6 {[%clk 0:00:06.3]} 79. Kc4
{[%clk 0:00:06.7]} 79... Na7 {[%clk 0:00:06.5]} 80. Kc5 {[%clk 0:00:06.7]} 80...
Bg5 {[%clk 0:00:07.1]} 81. Kb6 {[%clk 0:00:06.2]} 81... Be3+ {[%clk 0:00:07.7]}
82. Kb7 {[%clk 0:00:06.8]} 82... Kxg6 {[%clk 0:00:08.3]} 83. g5 {[%clk
0:00:07.1]} 83... Kxg5 {[%clk 0:00:08.7]} 0-1

[Event "*** SCC Grand Prix: Titled Tuesday Blitz"]
[Site "Chess.com"]
[Date "2020.06.09"]
[Round "3"]
[White "Salem-AR"]
[Black "giantslayer83"]
[Result "1/2-1/2"]
[WhiteElo "2974"]
[BlackElo "2711"]
[TimeControl "180+1"]
[EndTime "9:31:01 PDT"]
[Termination "Game drawn by agreement"]

1. d4 {[%clk 0:03:00.9]} 1... Nf6 {[%clk 0:02:58.4]} 2. c4 {[%clk 0:03:01.3]}
2... e6 {[%clk 0:02:58.1]} 3. Nf3 {[%clk 0:03:01.8]} 3... d5 {[%clk 0:02:57.2]}
4. Nc3 {[%clk 0:03:02.3]} 4... Bb4 {[%clk 0:02:56.5]} 5. e3 {[%clk 0:03:02.6]}
5... O-O {[%clk 0:02:55.2]} 6. Bd3 {[%clk 0:03:03.3]} 6... b6 {[%clk 0:02:55.1]}
7. O-O {[%clk 0:03:03.2]} 7... Bb7 {[%clk 0:02:55.1]} 8. cxd5 {[%clk 0:03:03.9]}
8... exd5 {[%clk 0:02:55.5]} 9. a3 {[%clk 0:03:04.5]} 9... Bd6 {[%clk 0:02:55]}
10. b4 {[%clk 0:03:05.1]} 10... a6 {[%clk 0:02:54.6]} 11. Qb3 {[%clk 0:03:04.5]}
11... Nbd7 {[%clk 0:02:54.2]} 12. a4 {[%clk 0:03:04]} 12... Qe7 {[%clk
0:02:53.9]} 13. Rb1 {[%clk 0:03:04.4]} 13... Rae8 {[%clk 0:02:44.8]} 14. b5
{[%clk 0:03:00.5]} 14... a5 {[%clk 0:02:44.1]} 15. Ra1 {[%clk 0:02:58.1]} 15...
Qe6 {[%clk 0:02:14.1]} 16. Ba3 {[%clk 0:02:55.7]} 16... Ne4 {[%clk 0:02:13.8]}
17. Rac1 {[%clk 0:02:49.7]} 17... Ndf6 {[%clk 0:01:57.8]} 18. Bxd6 {[%clk
0:02:34.7]} 18... cxd6 {[%clk 0:01:53.4]} 19. Ne2 {[%clk 0:02:31.3]} 19... Rc8
{[%clk 0:01:51.7]} 20. h3 {[%clk 0:02:17.1]} 20... g5 {[%clk 0:01:50.9]} 21. Bb1
{[%clk 0:01:50.3]} 21... h6 {[%clk 0:01:43.6]} 22. Qb2 {[%clk 0:01:38.1]} 22...
Rxc1 {[%clk 0:01:42.1]} 23. Rxc1 {[%clk 0:01:36.1]} 23... Rc8 {[%clk 0:01:43]}
24. Rxc8+ {[%clk 0:01:23.9]} 24... Qxc8 {[%clk 0:01:43.9]} 25. Qc2 {[%clk
0:01:22.6]} 25... Qxc2 {[%clk 0:01:42.8]} 26. Bxc2 {[%clk 0:01:23.5]} 26... Bc8
{[%clk 0:01:41.1]} 27. Kf1 {[%clk 0:00:54.3]} 27... Kg7 {[%clk 0:01:40]} 28. Ke1
{[%clk 0:00:54.5]} 28... Be6 {[%clk 0:01:39.3]} 29. Nh2 {[%clk 0:00:45.7]} 29...
Nd7 {[%clk 0:01:26.9]} 30. f3 {[%clk 0:00:44.6]} 30... Nef6 {[%clk 0:01:26.5]}
31. g4 {[%clk 0:00:42.6]} 31... Nf8 {[%clk 0:01:24.6]} 32. Nf1 {[%clk
0:00:41.5]} 32... Ng6 {[%clk 0:01:23.5]} 33. Nfg3 {[%clk 0:00:36.9]} 33... Nh4
{[%clk 0:01:23.6]} 34. Kf2 {[%clk 0:00:37.2]} 34... Bd7 {[%clk 0:01:17.3]} 35.
Nc3 {[%clk 0:00:37.1]} 35... Be6 {[%clk 0:01:15.1]} 36. Nge2 {[%clk 0:00:35.2]}
36... Kf8 {[%clk 0:01:11.9]} 37. f4 {[%clk 0:00:30.9]} 37... Ke7 {[%clk
0:00:55.3]} 38. f5 {[%clk 0:00:30.9]} 38... Bc8 {[%clk 0:00:54.6]} 39. Bb3
{[%clk 0:00:29.9]} 39... Bb7 {[%clk 0:00:54.7]} 40. Ng3 {[%clk 0:00:29.7]} 40...
Kf8 {[%clk 0:00:48.1]} 41. Nf1 {[%clk 0:00:27.4]} 41... Ke7 {[%clk 0:00:33.1]}
42. Nd2 {[%clk 0:00:27.1]} 42... Kf8 {[%clk 0:00:28.7]} 43. Kg3 {[%clk
0:00:26.9]} 43... Ke7 {[%clk 0:00:28.5]} 44. Bd1 {[%clk 0:00:26]} 44... Kf8
{[%clk 0:00:25.1]} 45. Bf3 {[%clk 0:00:25.7]} 45... Nxf3 {[%clk 0:00:19.9]} 46.
Kxf3 {[%clk 0:00:20.6]} 46... Ke7 {[%clk 0:00:19.6]} 47. Kg3 {[%clk 0:00:17.9]}
47... Kf8 {[%clk 0:00:19.8]} 48. h4 {[%clk 0:00:18.1]} 48... Kg7 {[%clk
0:00:20.1]} 49. hxg5 {[%clk 0:00:15.5]} 49... hxg5 {[%clk 0:00:21]} 50. Nf3
{[%clk 0:00:15.1]} 50... Kh6 {[%clk 0:00:21.4]} 51. Nd2 {[%clk 0:00:12.8]} 51...
Kg7 {[%clk 0:00:21.4]} 52. Nd1 {[%clk 0:00:11.8]} 52... Ne4+ {[%clk 0:00:20.6]}
53. Nxe4 {[%clk 0:00:11.7]} 53... dxe4 {[%clk 0:00:21.5]} 54. Nc3 {[%clk
0:00:11.9]} 54... d5 {[%clk 0:00:21.7]} 55. Ne2 {[%clk 0:00:09.9]} 55... f6
{[%clk 0:00:21.9]} 56. Kf2 {[%clk 0:00:09.8]} 56... Kf7 {[%clk 0:00:21.9]} 57.
Ke1 {[%clk 0:00:10]} 57... Ke7 {[%clk 0:00:21.8]} 58. Kd2 {[%clk 0:00:10.1]}
58... Kf7 {[%clk 0:00:22.2]} 59. Kc3 {[%clk 0:00:10.5]} 59... Ke7 {[%clk
0:00:22.8]} 60. Ng3 {[%clk 0:00:10.6]} 60... Kf7 {[%clk 0:00:23.2]} 61. Nh5
{[%clk 0:00:11.2]} 61... Bc8 {[%clk 0:00:23.1]} 62. Kb3 {[%clk 0:00:10.7]} 62...
Bb7 {[%clk 0:00:23.3]} 63. Kb2 {[%clk 0:00:11]} 63... Bc8 {[%clk 0:00:23.5]} 64.
Kc3 {[%clk 0:00:11.3]} 64... Bd7 {[%clk 0:00:24]} 65. Kb3 {[%clk 0:00:11.5]}
65... Bc8 {[%clk 0:00:24.5]} 66. Ng3 {[%clk 0:00:11.8]} 66... Bb7 {[%clk
0:00:24.3]} 67. Kb2 {[%clk 0:00:12.4]} 67... Ke7 {[%clk 0:00:23.9]} 68. Ne2
{[%clk 0:00:12.5]} 68... Kd6 {[%clk 0:00:23.8]} 69. Nc3 {[%clk 0:00:13.2]} 69...
Kd7 {[%clk 0:00:24.2]} 70. Na2 {[%clk 0:00:13.7]} 70... Ke7 {[%clk 0:00:24.5]}
71. Nc1 {[%clk 0:00:14]} 71... Kd6 {[%clk 0:00:24.9]} 72. Kc3 {[%clk 0:00:14.5]}
72... Kd7 {[%clk 0:00:25.3]} 73. Nb3 {[%clk 0:00:14.7]} 73... Ke7 {[%clk
0:00:25.7]} 74. Nd2 {[%clk 0:00:07.8]} 74... Kd6 {[%clk 0:00:25.4]} 75. Nf1
{[%clk 0:00:08.4]} 75... Kd7 {[%clk 0:00:25.7]} 76. Ng3 {[%clk 0:00:08.8]} 76...
Ke7 {[%clk 0:00:26.2]} 77. Kd2 {[%clk 0:00:09.1]} 77... Kf7 {[%clk 0:00:26.4]}
78. Kc2 {[%clk 0:00:09.7]} 78... Bc8 {[%clk 0:00:26.7]} 79. Kb3 {[%clk
0:00:09.6]} 79... Bb7 {[%clk 0:00:27.1]} 80. Kb2 {[%clk 0:00:10.1]} 80... Bc8
{[%clk 0:00:27.5]} 81. Ne2 {[%clk 0:00:10.8]} 81... Bb7 {[%clk 0:00:27.8]} 82.
Nc3 {[%clk 0:00:11.4]} 82... Ke7 {[%clk 0:00:28.2]} 83. Kc2 {[%clk 0:00:12.1]}
83... Kd7 {[%clk 0:00:28.1]} 84. Kb3 {[%clk 0:00:12.5]} 84... Ke7 {[%clk
0:00:28.3]} 85. Kb2 {[%clk 0:00:12.2]} 85... Kd7 {[%clk 0:00:28.6]} 86. Kc2
{[%clk 0:00:12.7]} 86... Kd6 {[%clk 0:00:28.9]} 87. Ne2 {[%clk 0:00:12.3]} 87...
Kd7 {[%clk 0:00:28.3]} 88. Ng3 {[%clk 0:00:13.2]} 88... Ke7 {[%clk 0:00:28.5]}
89. Nh5 {[%clk 0:00:13.8]} 89... Kf7 {[%clk 0:00:28.8]} 90. Kc3 {[%clk
0:00:14.5]} 90... Bc8 {[%clk 0:00:28.9]} 91. Kb3 {[%clk 0:00:12.3]} 1/2-1/2

[Event "*** SCC Grand Prix: Titled Tuesday Blitz"]
[Site "Chess.com"]
[Date "2020.06.09"]
[Round "3"]
[White "szachuspl"]
[Black "ChronicUnhappiness"]
[Result "1-0"]
[WhiteElo "2552"]
[BlackElo "2320"]
[TimeControl "180+1"]
[EndTime "9:31:09 PDT"]
[Termination "szachuspl won by checkmate"]

1. d4 {[%clk 0:03:00.9]} 1... d5 {[%clk 0:02:58.6]} 2. c4 {[%clk 0:03:00.7]}
2... e6 {[%clk 0:02:58.1]} 3. Nc3 {[%clk 0:03:00.7]} 3... Bb4 {[%clk 0:02:57.2]}
4. Qa4+ {[%clk 0:02:59.5]} 4... Nc6 {[%clk 0:02:56.4]} 5. Nf3 {[%clk 0:02:59.9]}
5... Nf6 {[%clk 0:02:56.1]} 6. e3 {[%clk 0:03:00.4]} 6... O-O {[%clk 0:02:55.8]}
7. Qc2 {[%clk 0:03:01]} 7... a6 {[%clk 0:02:45.5]} 8. Bd2 {[%clk 0:02:51]} 8...
Bd6 {[%clk 0:02:42.1]} 9. c5 {[%clk 0:02:45.9]} 9... Be7 {[%clk 0:02:41.8]} 10.
a3 {[%clk 0:02:46.4]} 10... e5 {[%clk 0:02:38.9]} 11. b4 {[%clk 0:02:16.5]}
11... exd4 {[%clk 0:02:28.8]} 12. exd4 {[%clk 0:02:14]} 12... Ne4 {[%clk
0:02:28.1]} 13. Be3 {[%clk 0:02:12.1]} 13... Bf6 {[%clk 0:02:10]} 14. O-O-O
{[%clk 0:02:10.7]} 14... Bf5 {[%clk 0:02:05.2]} 15. Bd3 {[%clk 0:02:10.1]} 15...
Nxc3 {[%clk 0:02:04.6]} 16. Qxc3 {[%clk 0:02:09.7]} 16... Be4 {[%clk 0:02:00.5]}
17. Bxe4 {[%clk 0:01:43.4]} 17... dxe4 {[%clk 0:02:00.1]} 18. Ne5 {[%clk
0:01:43]} 18... Qe7 {[%clk 0:01:45.3]} 19. Ng4 {[%clk 0:01:34.9]} 19... Rad8
{[%clk 0:01:34.8]} 20. Qc4 {[%clk 0:01:23.2]} 20... Bg5 {[%clk 0:01:30]} 21. d5
{[%clk 0:01:18.9]} 21... h5 {[%clk 0:01:10.9]} 22. Bxg5 {[%clk 0:01:11.2]} 22...
Qxg5+ {[%clk 0:01:09.7]} 23. Ne3 {[%clk 0:01:11.5]} 23... Ne7 {[%clk 0:01:04.8]}
24. Qxe4 {[%clk 0:01:07]} 24... Rfe8 {[%clk 0:00:58.7]} 25. h4 {[%clk 0:01:02]}
25... Qf6 {[%clk 0:00:54.7]} 26. Qc4 {[%clk 0:00:57]} 26... Qxf2 {[%clk
0:00:52]} 27. Nc2 {[%clk 0:00:54.1]} 27... Nf5 {[%clk 0:00:40.9]} 28. Rhf1
{[%clk 0:00:49.9]} 28... Ne3 {[%clk 0:00:40.6]} 29. Rxf2 {[%clk 0:00:45.1]}
29... Nxc4 {[%clk 0:00:40.9]} 30. Rd3 {[%clk 0:00:36.1]} 30... Re5 {[%clk
0:00:39]} 31. Rc3 {[%clk 0:00:29.1]} 31... b5 {[%clk 0:00:38.7]} 32. cxb6 {[%clk
0:00:26.6]} 32... Nxb6 {[%clk 0:00:38.3]} 33. Rxc7 {[%clk 0:00:25.1]} 33... f6
{[%clk 0:00:33.9]} 34. Rc6 {[%clk 0:00:19.7]} 34... Nxd5 {[%clk 0:00:31]} 35.
Rd2 {[%clk 0:00:19.9]} 35... Rde8 {[%clk 0:00:26.9]} 36. Rxa6 {[%clk 0:00:18.8]}
36... Rc8 {[%clk 0:00:19.9]} 37. Ra5 {[%clk 0:00:15.7]} 37... Re1+ {[%clk
0:00:17.9]} 38. Kb2 {[%clk 0:00:14.6]} 38... Nf4 {[%clk 0:00:16.7]} 39. Rc5
{[%clk 0:00:14.4]} 39... Rce8 {[%clk 0:00:14.7]} 40. Rc4 {[%clk 0:00:14.2]}
40... Ne2 {[%clk 0:00:13.6]} 41. b5 {[%clk 0:00:12.5]} 41... Ng3 {[%clk
0:00:09.9]} 42. b6 {[%clk 0:00:12.7]} 42... Ne4 {[%clk 0:00:10.1]} 43. Rd3
{[%clk 0:00:09.3]} 43... Rb8 {[%clk 0:00:09.7]} 44. Rb4 {[%clk 0:00:08.4]} 44...
Nc5 {[%clk 0:00:08.7]} 45. Rc3 {[%clk 0:00:08.9]} 45... Re5 {[%clk 0:00:06.3]}
46. a4 {[%clk 0:00:07]} 46... Nxa4+ {[%clk 0:00:05.1]} 47. Rxa4 {[%clk
0:00:06.5]} 47... Rxb6+ {[%clk 0:00:06]} 48. Rb4 {[%clk 0:00:06.8]} 48... Rbe6
{[%clk 0:00:04.2]} 49. Rcc4 {[%clk 0:00:06.5]} 49... Re2 {[%clk 0:00:04.3]} 50.
g3 {[%clk 0:00:06.2]} 50... R6e3 {[%clk 0:00:04.1]} 51. Rb3 {[%clk 0:00:04.9]}
51... Re4 {[%clk 0:00:03.2]} 52. Rxe4 {[%clk 0:00:04.8]} 52... Rxe4 {[%clk
0:00:04.1]} 53. Re3 {[%clk 0:00:05]} 53... Rg4 {[%clk 0:00:03.9]} 54. Kc3 {[%clk
0:00:05.4]} 54... Kh7 {[%clk 0:00:04.5]} 55. Kd3 {[%clk 0:00:05]} 55... Kg6
{[%clk 0:00:05.4]} 56. Ke2 {[%clk 0:00:05]} 56... Rc4 {[%clk 0:00:05.2]} 57. Ne1
{[%clk 0:00:05.3]} 57... Rb4 {[%clk 0:00:05]} 58. Kf3 {[%clk 0:00:05.8]} 58...
Ra4 {[%clk 0:00:04.7]} 59. Ng2 {[%clk 0:00:06.3]} 59... Rb4 {[%clk 0:00:04.9]}
60. Nf4+ {[%clk 0:00:06.9]} 60... Kh6 {[%clk 0:00:04.9]} 61. Rd3 {[%clk
0:00:07.4]} 61... Ra4 {[%clk 0:00:04.3]} 62. Ne6 {[%clk 0:00:07.2]} 62... Rb4
{[%clk 0:00:03.7]} 63. Nd4 {[%clk 0:00:07.2]} 63... Ra4 {[%clk 0:00:03.7]} 64.
Nf5+ {[%clk 0:00:07.5]} 64... Kg6 {[%clk 0:00:03.4]} 65. Ne3 {[%clk 0:00:07.9]}
65... Rb4 {[%clk 0:00:03.6]} 66. Rd5 {[%clk 0:00:06.7]} 66... Ra4 {[%clk
0:00:04.5]} 67. Ng2 {[%clk 0:00:06.9]} 67... Ra3+ {[%clk 0:00:04.4]} 68. Kf2
{[%clk 0:00:07.2]} 68... Ra2+ {[%clk 0:00:05.2]} 69. Kg1 {[%clk 0:00:07.7]}
69... Ra1+ {[%clk 0:00:05.7]} 70. Kh2 {[%clk 0:00:08.2]} 70... Ra4 {[%clk
0:00:06.1]} 71. Nf4+ {[%clk 0:00:08]} 71... Kf7 {[%clk 0:00:06.5]} 72. Nxh5
{[%clk 0:00:08.2]} 72... Rb4 {[%clk 0:00:07.4]} 73. Nf4 {[%clk 0:00:08.4]} 73...
Rb7 {[%clk 0:00:08.3]} 74. h5 {[%clk 0:00:08.7]} 74... Re7 {[%clk 0:00:09]} 75.
Kh3 {[%clk 0:00:08.9]} 75... Re4 {[%clk 0:00:09.9]} 76. Kg4 {[%clk 0:00:09.1]}
76... Re1 {[%clk 0:00:10.2]} 77. Rd7+ {[%clk 0:00:09.3]} 77... Kg8 {[%clk
0:00:10.6]} 78. Ra7 {[%clk 0:00:09.3]} 78... Kh7 {[%clk 0:00:10.8]} 79. Rb7
{[%clk 0:00:07.6]} 79... Re8 {[%clk 0:00:10.1]} 80. Ng6 {[%clk 0:00:07.8]} 80...
Rd8 {[%clk 0:00:09.3]} 81. Nh4 {[%clk 0:00:08]} 81... Rd4+ {[%clk 0:00:09.2]}
82. Kh3 {[%clk 0:00:08.4]} 82... Rd5 {[%clk 0:00:09.5]} 83. g4 {[%clk
0:00:08.2]} 83... Rd3+ {[%clk 0:00:09.5]} 84. Kg2 {[%clk 0:00:08.6]} 84... Rd8
{[%clk 0:00:10]} 85. Nf5 {[%clk 0:00:08.4]} 85... Rg8 {[%clk 0:00:10.9]} 86. Kg3
{[%clk 0:00:08.9]} 86... Kh8 {[%clk 0:00:10.6]} 87. Kf4 {[%clk 0:00:08.2]} 87...
g6 {[%clk 0:00:11]} 88. Nh6 {[%clk 0:00:06.5]} 88... g5+ {[%clk 0:00:09.8]} 89.
Kf5 {[%clk 0:00:06.5]} 89... Rf8 {[%clk 0:00:10.7]} 90. Nf7+ {[%clk 0:00:06.4]}
90... Kg8 {[%clk 0:00:11]} 91. Nd6 {[%clk 0:00:06.6]} 91... Kh8 {[%clk
0:00:11.3]} 92. Ne4 {[%clk 0:00:07]} 92... Kg8 {[%clk 0:00:11]} 93. Nxf6+ {[%clk
0:00:07.2]} 93... Kh8 {[%clk 0:00:11.9]} 94. Rh7# {[%clk 0:00:06.9]} 1-0